Cogmind - Beta 12 *** ADVENTURER MODE // 2023.11.12 @ 22:23:38 Player: Scott Result: Destroyed by S-43 Plague with Heavy Machine Gun Performance ------------- Evolutions (7) 3500 Regions Visited (10) 2000 Robots Destroyed (138) 690 Value Destroyed (6243) 6243 Prototype IDs (3) 60 Alien Tech Used (0) 0 Bonus (354) 354 TOTAL SCORE: 12847 Bonus ------- High Alert Combat Kills 54 Aligned with FarCom 300 Cogmind --------- Core Integrity 0/1300 Matter 300/300 Energy 99/100 System Corruption 29% Temperature Cool (0) Movement Core (50) Location -3/Research Parts ------- > --- POWER (2) -------- (None) > --- PROPULSION (5) --- (None) > --- UTILITY (10) ----- (None) > --- WEAPON (4) ------- (None) > --- INVENTORY (5) ---- Improved Antigrav System Antigrav Array Advanced Heat Sink Advanced Heat Sink Peak State ------------ > --- POWER ------------ Antimatter Reactor Particle Reactor > --- PROPULSION ------- Antigrav System Antigrav System Improved Antigrav System Improved Antigrav System > --- UTILITY ---------- Improved Heat Sink Improved Heat Sink Advanced Heat Sink Advanced Heat Sink Improved Coolant Injector Medium Storage Unit 0b10 Alert Chip Improved Medium Armor Plating Hacking Suite > --- WEAPON ----------- Gamma Rifle Wave Gun Variable Charge Gun Heavy Phase Cannon > --- INVENTORY -------- Reinforced Deuterium Engine Antimatter Reactor Improved Treads Medium Treads Antigrav System Improved Heat Sink Improved Heat Sink Tesla Rifle Tesla Rifle [Rating: 107] Favorites ----------- Power F-cell Engine Engine F-cell Engine Power Core Light Nuclear Core Reactor Particle Reactor Propulsion Light Treads Treads Light Treads Wheel Wheel Hover Unit Improved Antigrav System Flight Unit Xenon Bombardment Thruster Utility Medium Storage Unit Device Improved Heat Sink Storage Medium Storage Unit Processor 0b10 Alert Chip Hackware Hacking Suite Protection Improved Medium Armor Plating Weapon High-powered Shock Rifle Energy Gun High-powered Shock Rifle Energy Cannon Long-range Proton Cannon Ballistic Gun Gauss Rifle Slashing Weapon Power Sword Build | -11 -10 -10 -10 -9 -8 -7 -6 -5 -4 -3 ------- Run | Jun Mat Min Exi Min Mat Fac Fac Fac Fac Res Slots Evolved 14 | . . . . . 4 2 2 2 2 2 Power 1 | . . . . . . . . 1 . . Propulsion 3 | . . . . . 1 . . . 1 1 Utility 8 | . . . . . 2 2 2 1 . 1 Weapon 2 | . . . . . 1 . . . 1 . Parts Attached 141 | 6 10 . . 2 11 16 21 4 44 27 Power 16 | 1 1 . . 2 1 2 1 . 5 3 Engine 7 | 1 1 . . 2 . 1 1 . . 1 Core 3 | . . . . . 1 1 . . 1 . Reactor 6 | . . . . . . . . . 4 2 Propulsion 40 | 2 5 . . . 5 2 4 1 14 7 Treads 21 | . 2 . . . 4 2 4 1 7 1 Leg . | . . . . . . . . . . . Wheel 6 | 2 3 . . . 1 . . . . . Hover 11 | . . . . . . . . . 7 4 Flight 2 | . . . . . . . . . . 2 Utility 41 | 1 4 . . . 2 5 7 1 15 6 Device 18 | . . . . . . 1 1 1 10 5 Storage 5 | 1 3 . . . . . . . . 1 Processor 2 | . 1 . . . 1 . . . . . Hackware 1 | . . . . . . . 1 . . . Protection 15 | . . . . . 1 4 5 . 5 . Artifact . | . . . . . . . . . . . Weapon 44 | 2 . . . . 3 7 9 2 10 11 Energy Gun 26 | . . . . . 1 4 5 . 9 7 Energy Cannon 10 | . . . . . . 3 3 2 1 1 Ballistic Gun 6 | 2 . . . . 2 . 1 . . 1 Ballistic Cannon . | . . . . . . . . . . . Launcher . | . . . . . . . . . . . Special Weapon . | . . . . . . . . . . . Impact Weapon . | . . . . . . . . . . . Slashing Weapon 2 | . . . . . . . . . . 2 Piercing Weapon . | . . . . . . . . . . . Special Melee Weapon . | . . . . . . . . . . . Unidentified Prototypes 3 | . . . . . 1 . 1 . . 1 Corrupted Parts 6 | . . . . . . . 2 . 2 2 System Corruption 27 | . . . . . . . 5 . 14 8 Parts Lost 67 | . 1 . . . . 5 1 . 24 36 Power 10 | . 1 . . . . 2 . . 2 5 Propulsion 15 | . . . . . . . . . 7 8 Utility 18 | . . . . . . 1 . . 7 10 Weapon 24 | . . . . . . 2 1 . 8 13 Highest Loss Streak 17 | . 1 . . . . 2 1 . 10 17 To Critical Strikes . | . . . . . . . . . . . Average Slot Usage (%) 88 | . 86 100 100 100 97 97 93 82 85 55 Engine 4 | . 14 14 14 14 3 2 3 5 2 1 Core 1 | . . . . . 5 4 2 . . . Reactor 1 | . . . . . . . . . 6 5 Treads 14 | . . . . . 22 23 19 17 12 5 Wheel 3 | . 28 28 28 28 4 . . . . . Hover 1 | . . . . . . . . . 5 2 Device 8 | . . . . . . 4 6 11 16 18 Storage 6 | . 14 14 14 14 9 7 6 5 5 2 Processor 7 | . 1 14 14 14 18 10 6 5 5 . Hackware 3 | . . . . . . . 5 5 5 3 Protection 12 | . . . . . 7 21 21 11 8 . Energy Gun 10 | . . . . . 8 12 13 5 11 10 Energy Cannon 2 | . . . . . . 3 2 11 5 . Ballistic Gun 6 | . 28 28 28 28 18 4 2 . . . Naked Turns 23 | . . . . . . . . . . 23 Heaviest Build 90 | 11 18 18 18 18 28 40 71 70 90 80 Greatest Support 152 | 20 26 26 26 26 60 60 64 62 149 152 Greatest Overweight (x) 14 | . . . . . . . 1 1 14 2 Average Overweight (x) . | . . . . . . . . 1 . . Largest Inventory Capacity 20 | 8 20 10 10 10 10 10 10 10 10 15 Average Capacity 9 | 5 9 10 10 10 10 10 10 10 10 9 Most Carried 10 | 5 10 10 10 10 10 10 10 10 10 10 Average Carried 9 | 4 7 10 9 10 9 9 9 9 8 7 Final Capacity 10 | 8 10 10 10 10 10 10 10 10 10 5 Final Carried 10 | 3 10 10 10 10 10 10 10 10 10 5 Class Distribution -------------------- 25% | Scavenger-Skirmisher 20% | Scavenger-Tank 19% | Hacker-Tank 13% | Scavenger-Mutant 13% | Mutant 3% | Hacker-Mutant Dominant Class ---------------- Mutant | -10/Materials Mutant | -10/Mines Mutant | -10/Exiles Mutant | -9/Mines Scavenger-Skirmisher | -8/Materials Scavenger-Tank | -7/Factory Hacker-Tank | -6/Factory Hacker-Tank | -5/Factory Scavenger-Skirmisher | -4/Factory Scavenger-Skirmisher | -3/Research Resources | -11 -10 -10 -10 -9 -8 -7 -6 -5 -4 -3 ----------- Run | Jun Mat Min Exi Min Mat Fac Fac Fac Fac Res Matter Collected 2195 | 181 96 . . 55 311 208 387 . 721 236 Remotely . | . . . . . . . . . . . Salvage Created 7138 | . 228 . . . 317 1137 1213 . 3340 903 Parts 363 | . 17 . . . 18 52 66 . 154 56 Haulers Intercepted 6 | . 2 . . . . 1 . . 1 2 Recyclers Shooed 1 | . . . . . 1 . . . . . Parts Field Recycled . | . . . . . . . . . . . Retrieved Matter . | . . . . . . . . . . . Parts Self-Destructed . | . . . . . . . . . . . Prevented . | . . . . . . . . . . . Kills | -11 -10 -10 -10 -9 -8 -7 -6 -5 -4 -3 ------- Run | Jun Mat Min Exi Min Mat Fac Fac Fac Fac Res Combat Hostiles Destroyed 104 | . 3 . . . 7 19 17 . 45 13 Melee 1 | . . . . . . . . . . 1 Guns 69 | . 3 . . . 7 14 10 . 24 11 Cannons 17 | . . . . . . 1 3 . 12 1 AOE 9 | . . . . . . 3 2 . 4 . Classes Destroyed 18 | . 3 . . . 4 7 3 . 1 . Worker 5 | . . . . . . 2 1 . 2 . Builder 8 | . . . . . . 5 . . 3 . Tunneler 1 | . . . . . . 1 . . . . Hauler 6 | . 2 . . . . 1 . . 1 2 Recycler 7 | . . . . . 2 2 1 . 2 . Operator 1 | . . . . . . 1 . . . . Watcher 6 | . 1 . . . 1 1 2 . 1 . Swarmer 23 | . . . . . 5 1 . . 10 7 Grunt 28 | . 3 . . . . 9 6 . 10 . Brawler 4 | . . . . . . 1 2 . 1 . Duelist 3 | . . . . . . 1 . . . 2 Sentry 6 | . . . . . 1 1 . . 4 . Demolisher 2 | . . . . . . . 2 . . . Specialist 2 | . . . . . . . 2 . . . Hunter 6 | . . . . . 1 1 . . 4 . Programmer 28 | . . . . . . 5 4 . 15 4 Heavy 1 | . . . . . . . 1 . . . Behemoth 1 | . . . . . . . . . 1 . Best Kill Streak 13 | . 3 . . . 5 13 3 . 8 5 Combat Bots Only 6 | . 2 . . . 5 5 3 . 6 5 Max Kills in Single Turn 10 | . 1 . . . 1 10 2 . 2 1 Gunslinging 1 | . . . . . . . . . 1 . Exploded 2 | . . . . . . 1 1 . 2 . Melee 1 | . . . . . . . . . . 1 Uniques/NPCs Destroyed . | . . . . . . . . . . . Combat | -11 -10 -10 -10 -9 -8 -7 -6 -5 -4 -3 -------- Run | Jun Mat Min Exi Min Mat Fac Fac Fac Fac Res Damage Taken 12764 | . 224 . . . 158 1207 1665 . 4978 4532 Core 2320 | . 77 . . . 20 121 167 . 625 1310 Absorbed by Shields . | . . . . . . . . . . . Reduced by Siege Mode 70 | . . . . . . . . . 17 53 Redirected to Shielding 25 | . . . . . . 23 2 . . . Regen/Repaired (Parts) 538 | . . . . . . . . . 538 . Core Remaining (%) 81 | 100 . . . 69 96 82 80 100 45 . Volleys Fired 331 | . 22 . . . 21 49 55 . 123 61 Largest 4 | . 2 . . . 3 3 3 . 4 4 Hottest 321 | . 40 . . . 110 215 216 . 321 276 Shots Fired 848 | . 44 . . . 49 116 158 . 352 129 Gun 724 | . 44 . . . 49 109 132 . 273 117 Cannon 124 | . . . . . . 7 26 . 79 12 Launcher . | . . . . . . . . . . . Special . | . . . . . . . . . . . Kinetic 128 | . 44 . . . 30 10 30 . . 14 Thermal 285 | . . . . . 19 59 32 . 144 31 Explosive . | . . . . . . . . . . . Electromagnetic 435 | . . . . . . 47 96 . 208 84 Robot Hit Streak 33 | . 26 . . . 8 27 27 . 33 18 Robot Miss Streak 4 | . 1 . . . 3 2 4 . 3 4 Penetration Max 1 | . . . . . . . 1 . . . Secondary Targets 9 | . . . . . . 3 . . 2 4 Max Gunslinging Chain 1 | . . . . . . 1 . . 1 1 Shots Hit Robots 672 | . 36 . . . 33 101 122 . 267 113 Core Hits 296 | . 13 . . . 18 57 49 . 115 44 Critical Kills 3 | . . . . . . . 2 . 1 . Critical Parts Destroyed 6 | . 1 . . . . . 2 . . 3 Critical Strikes 25 | . 1 . . . . 2 7 . 9 6 Burn 3 | . . . . . . . 1 . 2 . Meltdown 1 | . . . . . . . . . 1 . Destroy 8 | . 1 . . . . . 4 . . 3 Corrupt 12 | . . . . . . 2 2 . 6 2 Sever 1 | . . . . . . . . . . 1 Melee Attacks 14 | . . . . . . . . . . 14 Impact . | . . . . . . . . . . . Slashing 14 | . . . . . . . . . . 14 Piercing . | . . . . . . . . . . . Sneak Attacks . | . . . . . . . . . . . Combat Hostiles . | . . . . . . . . . . . Follow-up Attacks . | . . . . . . . . . . . Damage Inflicted 15621 | . 401 . . . 376 3402 2765 . 6436 2241 Guns 10486 | . 401 . . . 376 2050 2081 . 3840 1738 Cannons 2806 | . . . . . . 118 591 . 2032 65 Explosions 1884 | . . . . . . 1234 93 . 557 . Melee 407 | . . . . . . . . . . 407 Ramming 38 | . . . . . . . . . 7 31 Kinetic 1560 | . 401 . . . 244 135 478 . . 302 Thermal 6872 | . . . . . 132 1485 774 . 3842 639 Explosive 1086 | . . . . . . 1086 . . . . Electromagnetic 5658 | . . . . . . 696 1513 . 2587 862 Impact . | . . . . . . . . . . . Slashing 407 | . . . . . . . . . . 407 Piercing . | . . . . . . . . . . . Highest Corruption 40 | . . . . . . 3 10 . 40 29 Average Corruption 13 | . . . . . . 2 3 . 24 23 Corruption Purged 5 | . . . . . . . . . 5 . Corruption Blocked . | . . . . . . . . . . . Effects 182 | . . . . . . 18 30 . 98 36 Message Errors 42 | . . . . . . 9 8 . 17 8 Matter Fused 40 | . . . . . . 2 7 . 24 7 Heat Flow Errors 20 | . . . . . . 1 . . 15 4 Energy Discharges 18 | . . . . . . 3 3 . 9 3 Parts Rejected 3 | . . . . . . . . . 1 2 Parts Fused 5 | . . . . . . 1 2 . 1 1 Data Loss (minor) 16 | . . . . . . . 6 . 9 1 Data Loss (major) 6 | . . . . . . 1 2 . 3 . Misfires 5 | . . . . . . . 1 . 4 . Alerts 5 | . . . . . . 1 1 . 3 . Misdirections 9 | . . . . . . . . . 3 6 Weapon Failures 13 | . . . . . . . . . 9 4 Overload Shots . | . . . . . . . . . . . Overflow Damage 376 | . . . . . . 325 . . 50 1 Projectiles 99 | . . . . . . 60 . . 39 . Explosions 276 | . . . . . . 265 . . 11 . Melee 1 | . . . . . . . . . . 1 Knockbacks . | . . . . . . . . . . . Impact . | . . . . . . . . . . . Kinetic . | . . . . . . . . . . . Secondary . | . . . . . . . . . . . Self-Inflicted Damage 353 | . . . . . . 148 46 . 159 . Shots 8 | . . . . . . 3 2 . 3 . Rammed 9 | . . . . . . . . . 2 7 Targets Rammed 9 | . . . . . . . . . 2 7 Kicked . | . . . . . . . . . . . Crushed . | . . . . . . . . . . . Highest Temperature 861 | . 22 . . . 196 377 423 . 861 166 Average Temperature 122 | . 11 . . . 80 142 166 . 109 36 Received Heat Transfer 1459 | . 168 . . . . 345 267 . 616 63 Effects 28 | . . . . . . 1 9 . 18 . Shutdowns 2 | . . . . . . . . . 2 . Energy Bleed 4 | . . . . . . 1 2 . 1 . Interference 9 | . . . . . . . 6 . 3 . Matter Decay 4 | . . . . . . . . . 4 . Short Circuit 2 | . . . . . . . 1 . 1 . Damage (minor) 1 | . . . . . . . . . 1 . Damage (major) 4 | . . . . . . . . . 4 . Damage (core) 2 | . . . . . . . . . 2 . Siege Activations 3 | . . . . . . . . . 1 2 Total Turns 71 | . . . . . . . . . 22 49 Longest Duration 30 | . . . . . . . . . 22 30 Robots Corrupted 9 | . . . . . . 1 2 . 6 . Combat Hostiles 6 | . . . . . . . 2 . 4 . Parts Fried 41 | . . . . . . 3 9 . 27 2 Impact Corruptions . | . . . . . . . . . . . Robots Melted 2 | . . . . . . 1 . . 1 . Combat Hostiles 2 | . . . . . . 1 . . 1 . Parts Melted 30 | . . . . . . 7 4 . 17 2 Heat Transferred 10254 | . . . . . 296 2956 1507 . 4579 916 Parts Sabotaged . | . . . . . . . . . . . Parts Stolen . | . . . . . . . . . . . Parts Stripped . | . . . . . . . . . . . Power Chain Reactions 7 | . . . . . . 2 2 . 3 . Missiles Intercepted . | . . . . . . . . . . . Alert | -11 -10 -10 -10 -9 -8 -7 -6 -5 -4 -3 ------- Run | Jun Mat Min Exi Min Mat Fac Fac Fac Fac Res Peak Influence 460 | . 120 39 . . 195 273 210 49 460 295 Initial 191 | . . 39 . . . 4 11 49 . 191 Average 92 | . 54 39 . . 79 52 49 45 190 122 Maximum Alert Level 2 | . . . . . . 1 1 . 2 1 Low Security (%) 83 | 100 100 100 . 100 100 88 97 100 56 75 Level 1 14 | . . . . . . 11 2 . 36 24 Level 2 1 | . . . . . . . . . 7 . Level 3 . | . . . . . . . . . . . Level 4 . | . . . . . . . . . . . Level 5 . | . . . . . . . . . . . High Security . | . . . . . . . . . . . Max Security . | . . . . . . . . . . . Squads Dispatched 36 | . . . . . 1 7 7 . 15 6 Investigation 5 | . . . . . . 1 1 . 3 . Extermination 16 | . . . . . . 4 3 . 6 3 Reinforcement 5 | . . . . . 1 1 3 . . . Assault . | . . . . . . . . . . . Garrison 10 | . . . . . . 1 . . 6 3 Intercept . | . . . . . . . . . . . Searches Triggered 1 | . . . . . . . . . 1 . Construction Impeded 1 | . . . . . . 1 . . . . Haulers Reinforced . | . . . . . . . . . . . Active Scanning Responses . | . . . . . . . . . . . Cargo Convoy Interrupts 1 | . . . . . . . 1 . . . Stealth | -11 -10 -10 -10 -9 -8 -7 -6 -5 -4 -3 --------- Run | Jun Mat Min Exi Min Mat Fac Fac Fac Fac Res Distress Signals 12 | . 1 . . . 2 1 2 . 6 . Communications Jammed . | . . . . . . . . . . . Distress Signals . | . . . . . . . . . . . Times Spotted 168 | . 6 . . . 13 25 32 1 57 34 Peak Tracking Total 8 | . 4 . . . 8 4 8 1 7 8 Tactical Retreats 11 | . . . . . . . 2 . 3 6 Traps | -11 -10 -10 -10 -9 -8 -7 -6 -5 -4 -3 ------- Run | Jun Mat Min Exi Min Mat Fac Fac Fac Fac Res Traps Triggered 9 | . . . . . . 3 2 . 1 3 Indirectly . | . . . . . . . . . . . Trap Hack Attempts . | . . . . . . . . . . . Triggered . | . . . . . . . . . . . Disarmed . | . . . . . . . . . . . Reprogrammed . | . . . . . . . . . . . Reused . | . . . . . . . . . . . Traps Extracted . | . . . . . . . . . . . Installed . | . . . . . . . . . . . Triggered 3 | . . . . . . 1 2 . . . Machines | -11 -10 -10 -10 -9 -8 -7 -6 -5 -4 -3 ---------- Run | Jun Mat Min Exi Min Mat Fac Fac Fac Fac Res Machines Disabled 28 | . . . . . . 9 4 . 15 . Max in Single Turn 6 | . . . . . . 6 3 . 5 . Machines Repaired . | . . . . . . . . . . . Machines Sabotaged . | . . . . . . . . . . . Overloaded Fab Kills . | . . . . . . . . . . . Hacking | -11 -10 -10 -10 -9 -8 -7 -6 -5 -4 -3 --------- Run | Jun Mat Min Exi Min Mat Fac Fac Fac Fac Res Machines Accessed 32 | . 2 . 4 . 3 5 9 1 7 1 Terminals 15 | . 2 . . . 3 3 4 1 2 . Fabricators 7 | . . . . . . 1 2 . 3 1 Repair Stations 1 | . . . . . . . . . 1 . Recycling Units 3 | . . . . . . . 2 . 1 . Scanalyzers 2 | . . . . . . 1 1 . . . Garrison Access . | . . . . . . . . . . . Total Hacks 98 | . 3 . 49 . 4 9 20 1 11 1 Successful 77 | . 2 . 49 . 3 3 12 1 6 1 Failed 21 | . 1 . . . 1 6 8 . 5 . Catastrophic 5 | . . . . . . 3 1 . 1 . Database Lockouts . | . . . . . . . . . . . Manual 14 | . 3 . 1 . 1 2 6 . 1 . Terminals 25 | . 3 . . . 4 7 8 1 2 . Fabricators 11 | . . . . . . 1 3 . 6 1 Repair Stations 2 | . . . . . . . . . 2 . Recycling Units 3 | . . . . . . . 2 . 1 . Scanalyzers 8 | . . . . . . 1 7 . . . Garrison Access . | . . . . . . . . . . . Terminal Hacks 60 | . 1 . 49 . 3 2 4 1 . . Record 49 | . . . 49 . . . . . . . Robot Schematic 3 | . . . . . . 2 1 . . . Open Door 1 | . . . . . . . . 1 . . Terminal Index 1 | . . . . . 1 . . . . . Unreport Threat 1 | . . . . . 1 . . . . . Locate Traps 1 | . . . . . . . 1 . . . Registered Components 3 | . 1 . . . 1 . 1 . . . Zone Layout 1 | . . . . . . . 1 . . . Fabricator Hacks 6 | . . . . . . 1 . . 4 1 Load Schematic 2 | . . . . . . . . . 2 . Build 4 | . . . . . . 1 . . 2 1 Repair Station Hacks 2 | . . . . . . . . . 2 . Scan Component 1 | . . . . . . . . . 1 . Repair 1 | . . . . . . . . . 1 . Recycling Unit Hacks 1 | . . . . . . . 1 . . . Retrieve Components 1 | . . . . . . . 1 . . . Scanalyzer 7 | . . . . . . . 7 . . . Insert Component 2 | . . . . . . . 2 . . . Analyze 5 | . . . . . . . 5 . . . Garrison Access Hacks . | . . . . . . . . . . . Unauthorized Hacks 1 | . 1 . . . . . . . . . Terminals 1 | . 1 . . . . . . . . . Track 1 | . 1 . . . . . . . . . Fabricators . | . . . . . . . . . . . Repair Stations . | . . . . . . . . . . . Recycling Units . | . . . . . . . . . . . Scanalyzers . | . . . . . . . . . . . Garrison Access . | . . . . . . . . . . . Data Cores Recovered 1 | . . . . . . 1 . . . . Used . | . . . . . . . . . . . Hacking Detections 24 | . 2 . . . 1 5 8 . 7 1 Full Trace Events 4 | . . . . . . . 1 . 3 . Feedback Events . | . . . . . . . . . . . Feedback Blocked . | . . . . . . . . . . . Robot Schematics Acquired 3 | . . . . . . 2 1 . . . Robots Built 6 | . . . . . . . . . 3 3 Authchips . | . . . . . . . . . . . Time 276 | . . . . . . . . . 183 93 Total Robot Build Rating 27 | . . . . . . . . . 6 21 Part Schematics Acquired 2 | . . . . . . . 2 . . . Parts Built 1 | . . . . . . 1 . . . . Authchips . | . . . . . . . . . . . Time 53 | . . . . . . 53 . . . . Total Part Build Rating 6 | . . . . . . 6 . . . . Parts Repaired 1 | . . . . . . . . . 1 . Time 50 | . . . . . . . . . 50 . Parts Recycled . | . . . . . . . . . . . Recycled Matter . | . . . . . . . . . . . Retrieved Matter . | . . . . . . . . . . . Retrieved Components 2 | . . . . . . . 2 . . . Parts Scanalyzed 2 | . . . . . . . 2 . . . Part Schematics Acquired 2 | . . . . . . . 2 . . . Parts Damaged . | . . . . . . . . . . . Bothacking | -11 -10 -10 -10 -9 -8 -7 -6 -5 -4 -3 ------------ Run | Jun Mat Min Exi Min Mat Fac Fac Fac Fac Res Used RIF Installer . | . . . . . . . . . . . Robots Hacked . | . . . . . . . . . . . Non-combat . | . . . . . . . . . . . Combat . | . . . . . . . . . . . Robot Hacks Applied . | . . . . . . . . . . . Relay Couplers Released 6 | . . . . . . 3 . . 3 . Programmers 6 | . . . . . . 3 . . 3 . Fabnet Peak Effective % . | . . . . . . . . . . . Robots Rewired . | . . . . . . . . . . . Allies Hacked . | . . . . . . . . . . . Hacks Repelled . | . . . . . . . . . . . Allies | -11 -10 -10 -10 -9 -8 -7 -6 -5 -4 -3 -------- Run | Jun Mat Min Exi Min Mat Fac Fac Fac Fac Res Total Allies 6 | . . . . . . . . . 3 3 Largest Group 3 | . . . . . . . . . 3 3 Highest-Rated Group 141 | . . . . . . . . . 54 141 Highest-Rated Ally 47 | . . . . . . . . . 18 47 Total Orders . | . . . . . . . . . . . Ally Attacks 15 | . . . . . . . . . 5 10 Total Damage 392 | . . . . . . . . . 164 228 Kills 1 | . . . . . . . . . . 1 Allies Corrupted . | . . . . . . . . . . . Allies Melted . | . . . . . . . . . . . Intel | -11 -10 -10 -10 -9 -8 -7 -6 -5 -4 -3 ------- Run | Jun Mat Min Exi Min Mat Fac Fac Fac Fac Res Robot Analysis Total . | . . . . . . . . . . . Derelict Logs Recovered 2 | . . 1 . 1 . . . . . . Drone Launches . | . . . . . . . . . . . Drone Recoveries . | . . . . . . . . . . . Exploration | -11 -10 -10 -10 -9 -8 -7 -6 -5 -4 -3 ------------- Run | Jun Mat Min Exi Min Mat Fac Fac Fac Fac Res Turns Passed 9140 | 38 275 144 597 139 470 2080 1876 428 1964 1129 Spaces Moved 4796 | 36 210 124 662 151 268 1007 857 177 755 549 Core 271 | 13 . . . . . . . . 2 256 Treads 2974 | . . . . . 201 1007 857 177 522 210 Legs . | . . . . . . . . . . . Wheels 1237 | 23 210 124 662 151 67 . . . . . Hover 312 | . . . . . . . . . 231 81 Flight 2 | . . . . . . . . . . 2 Fastest Speed 40 | 50 80 90 90 90 93 160 150 238 108 40 Average Speed 138 | 69 85 90 90 90 143 161 169 238 148 111 Slowest Speed 750 | 80 90 90 90 90 160 163 237 238 750 196 Overloaded Moves . | . . . . . . . . . . . Propulsion Burnouts . | . . . . . . . . . . . Robots Hopped . | . . . . . . . . . . . Cave-ins Triggered . | . . . . . . . . . . . Exploration Rate (%) 30 | 3 45 27 94 42 28 29 24 6 24 11 Regions Visited 10 Branch Regions 3 Pre-discovered Areas 1 | . . . 1 . . . . . . . Known Exits Taken 1 | . . . . . 1 . . . . . Unknown Exits Taken 9 | 1 1 1 1 1 . 1 1 1 1 . Scrap Searched 2 | . . . . 2 . . . . . . Spaces Dug . | . . . . . . . . . . . Terrain Destroyed 84 | . . . . . . 29 11 . 44 . Melee . | . . . . . . . . . . . Projectile 8 | . . . . . . . 2 . 6 . AOE 76 | . . . . . . 29 9 . 38 . Terrain Rammed . | . . . . . . . . . . . Walls Destroyed . | . . . . . . . . . . . Machines Disabled . | . . . . . . . . . . . Actions | -11 -10 -10 -10 -9 -8 -7 -6 -5 -4 -3 --------- Run | Jun Mat Min Exi Min Mat Fac Fac Fac Fac Res Total 6562 | 47 262 156 663 153 314 1350 1164 186 1338 929 Wait 1128 | . 12 33 . . 4 259 198 . 367 255 Move 4786 | 35 209 123 661 150 267 1006 856 176 754 549 Hop . | . . . . . . . . . . . Pick Up 85 | 6 8 . 1 . 6 8 11 3 31 11 Fast Attach 46 | 3 1 . . . 1 9 8 . 12 12 Attach 64 | 3 1 . . . 4 4 8 2 27 15 Detach 4 | . . . . . . . 2 . 2 . Swap 31 | . 8 . . 2 6 3 5 2 5 . Drop 64 | . 1 . 1 1 5 12 21 3 15 5 Fire 331 | . 22 . . . 21 49 55 . 123 61 Melee 14 | . . . . . . . . . . 14 Ram 2 | . . . . . . . . . . 2 Kick . | . . . . . . . . . . . Crush 7 | . . . . . . . . . 2 5 Escape Stasis . | . . . . . . . . . . . Rewire . | . . . . . . . . . . . Trap . | . . . . . . . . . . . Miscellaneous . | . . . . . . . . . . . Route ------- -11/Junkyard -10/Materials -10/Mines (discovered 2 exits: [*Mat] / *Exi) -10/Exiles (discovered 2 exits: [*Min x2]) -9/Mines -8/Materials (discovered 2 exits: *Fac x2) -7/Factory -6/Factory -5/Factory (discovered 2 exits: *Fac / [*Ext]) -4/Factory -3/Research History --------- Turn | Location | Event 2 | -11/Junkyard | Met Revision 17 21 | -11/Junkyard | Discovered new exit (range 15) 39 | -11/Junkyard | Entered Materials 277 | -10/Materials | Discovered new exit (range 16) 310 | -10/Materials | Build established: Mutant 314 | -10/Materials | Entered Mines 330 | -10/Mines | Discovered new exit (range 9) 437 | -10/Mines | Learned 4 Materials zone layouts 454 | -10/Mines | Deemed a non-threat by the Exiles lab entrance 454 | -10/Mines | Discovered new exit (range 5) 458 | -10/Mines | Entered Exiles 474 | -10/Exiles | Discovered new exit (range 15) 488 | -10/Exiles | Met 8R-AWN 504 | -10/Exiles | Met EX-HEX 552 | -10/Exiles | Met EX-DEC 577 | -10/Exiles | Learned location of Zion (-7) 612 | -10/Exiles | Discovered new exit (range 11) 671 | -10/Exiles | Visited The Gauntlet 868 | -10/Exiles | Met EX-BIN 943 | -10/Exiles | Aligned with FarCom system 944 | -10/Exiles | Given EX-Vault access code 967 | -10/Exiles | Opened EX-Vault 972 | -10/Exiles | Found Prototype Processor 990 | -10/Exiles | Warned to stay clear of 0b10 Research branches 1055 | -10/Exiles | Left Exiles lab with 0b10 Alert Chip 1055 | -10/Exiles | Entered Mines 1057 | -9/Mines | Learned Materials stockpile data 1160 | -9/Mines | Found a hidden stash of uninstalled traps 1168 | -9/Mines | Discovered new exit (range 16) 1194 | -9/Mines | Entered Materials 1194 | -8/Materials | Evolved 4 slots: Propulsion x1, Utility x2, Weapon x1 1195 | -8/Materials | Identified exit to Factory 1195 | -8/Materials | Identified 0b10 Alert Chip 1555 | -8/Materials | Build established: Scavenger-Skirmisher 1579 | -8/Materials | Discovered exit to Factory (range 9) 1664 | -8/Materials | Entered Factory 1664 | -7/Factory | Evolved 2 slots: Utility x2 1977 | -7/Factory | Fabricated Lrn. Proton Cannon (x1) 2284 | -7/Factory | Build established: Scavenger-Tank 2818 | -7/Factory | Garrison activated, responded to threat 3635 | -7/Factory | Discovered new exit (range 14) 3744 | -7/Factory | Entered another Factory area 3744 | -6/Factory | Evolved 2 slots: Utility x2 4137 | -6/Factory | Build established: Scavenger-Mutant 4488 | -6/Factory | Build established: Hacker-Tank 4762 | -6/Factory | Cargo convoy interrupted 4997 | -6/Factory | Assembled infested ambush trap array 5579 | -6/Factory | Discovered new exit (range 11) 5587 | -6/Factory | System corruption reached 10% 5620 | -6/Factory | Entered another Factory area 5620 | -5/Factory | Evolved 2 slots: Power x1, Utility x1 5953 | -5/Factory | Discovered new exit (range 13) 5967 | -5/Factory | Discovered new exit (range 9) 6048 | -5/Factory | Entered another Factory area 6048 | -4/Factory | Evolved 2 slots: Propulsion x1, Weapon x1 6347 | -4/Factory | Build established: Scavenger-Tank 6381 | -4/Factory | Repaired Imp. Heavy Armor Plating 6450 | -4/Factory | System corruption reached 10% 6577 | -4/Factory | Fabricated L-31 Rogue (x3) 6631 | -4/Factory | Fabricated Y-54 Guardian? 6649 | -4/Factory | Lost 5 parts (2n3w) 6957 | -4/Factory | Lost 3 parts (3u) 7117 | -4/Factory | Garrison activated, responded to threat 7134 | -4/Factory | Core integrity fell below 50% 7176 | -4/Factory | Lost 10 parts (2p4n1u3w) 7263 | -4/Factory | Garrison activated, responded to threat 7295 | -4/Factory | System corruption reached 30% 7524 | -4/Factory | Build established: Scavenger-Skirmisher 7548 | -4/Factory | Search patrols dispatched 7732 | -4/Factory | Spotted B-86 Titan 7736 | -4/Factory | Destroyed B-86 Titan 7925 | -4/Factory | Discovered new exit (range 13) 8012 | -4/Factory | Entered Research 8012 | -3/Research | Evolved 2 slots: Propulsion x1, Utility x1 8158 | -3/Research | Lost 3 parts (2u1w) 8552 | -3/Research | Fabricated G-67 Veteran? 8584 | -3/Research | System corruption reached 10% 8711 | -3/Research | Lost 17 parts (3p2n5u7w) 8900 | -3/Research | Garrison activated, responded to threat 8945 | -3/Research | Core integrity fell below 50% 8985 | -3/Research | Lost 13 parts (2p5n2u4w) 9111 | -3/Research | Core integrity fell below 20% 9141 | -3/Research | Destroyed by S-43 Plague with Heavy Machine Gun Last Messages --------------- 09070_ System corrupted: Matter fused (-5). 09072_ Acquired 2 matter. 09073_ Acquired Unknown Flight Unit. 09073_ Identified Xenon Bombardment Thruster. 09075_ Acquired 29 matter. 09075_ Acquired Xenon Bombardment Thruster. 09077_ Acquired 10 matter. 09082_ Acquired Adv. Heat Sink. 09085_ Acquired 10 matter. 09086_ System corrupted: Matter fused (-10). 09103_ Acquired 10 matter. 09106_ System corrupted: Xenon Bombardment Thruster rejected. 09107_ Hacking Suite destroyed. 09109_ Xenon Bombardment Thruster destroyed. 09118_ Triggered Segregator Trap. 09118_ Arcs of energy rise from the floor. 09118_ Adv. Heat Sink blown off. 09118_ Lrn. Sensor Array blown off. 09118_ Particle Synthesizer disabled. 09134_ Slammed into T-07 Excavator. Map ----- +----------------------------------------------------+ | ###+########## #?# ############## | | #?# ?????????? [ | | #?# ?????? ########### | | ! =#?# ??? ??????????? | | ! "" #?# ??????????? | | ###+#### """ #?####+########## ???????????? | | # ## """ #???????????????# ????????????? | | # ## """ #???????????????# ????????????? | | # ## """ #???????????????# ?????????????? | | # + #???????????????# ?????????????? | | # # #???????????????#??????????????? | | # + #??????????????????????????????? | | # ########### #??????????????????????????????? | | # #?????????# #??????????????????????????????? | | # #?????????# #??????????????????????????????? | | #######?????????# #??????????????????????????????? | | ????????????????# #????????????????ss????????????? | | ????????????????#p#????????????????s?????????????? | | ????????????????#p#????????????????s?????????????? | | ?????????????#### #?????????????????s????????????? | | ?????????????# ####+#?????????????????????????? | | ?????????????# #?????????????????????????? | | ?????????????# s #?????????????????????????? | | ?????????????# ### ##?????????????????????????? | | ?????????????## ####s##########?????????????????? | | ??????????????# ?# s =@ #?????????????????? | | ??????????????# ?# = #?????????????????? | | ??????????????# ?# #?????????????????? | | ??????????????# ?# ! #?????????????????? | | ?????????????? ?# #?????????????????? | | ?????????????? ?# #??????????w??????? | | ?????????????? ?+ #?????????????????? | | ?????????????"" ??# """ """ #?????????????????? | | ?????????????"" ??# """ """ #?????????????????? | | ??????????????" ??# """ """ #?????????????????? | | ??????????????? ??# ? #?????????????????? | | ??????????????????# ?? ?? #?????????????????? | | ##????????????????###??#####?????????????????????? | | ???????????????????????????????????????????? | | ???????????????????????????????????????????? | | ###??????????????????????????????????????????????? | | ?????????????????????????????????????????????????? | | ?????????????????????????????????????????????????? | | ?????????????????????????????????????????????????? | | ?????????????????????????????????????????????????? | | ?????????????????????????????????????????????????? | | ?????????????????????????????????????????????????? | | ?????????????????????????????????????????????????? | | ?????????????????????????????????????????????????? | | ?????????????????????????????????????????????????? | +----------------------------------------------------+ Best States ------------- Heat Dissipation 112 Coolant Potential 80 Energy Generation 39 Energy Capacity 740 Matter Stores 300 Matter Capacity 300 Sight Range 18 Robot Scan Range 18 Terrain Scan Density 10 Additional Mass Support 12 Armor Coverage 1200 Resistance: KI 20 Resistance: TH 20 Resistance: EX 20 Resistance: EM 20 Resistance: I 20 Resistance: S 20 Resistance: P 20 Core Shielding 20 Evasion (%) 50 Recoil Reduction 4 Offensive Hacking 20 Item Schematics ----------------- Med. Treads | -6/Factory | Scanalyzed Imp. Heavy Armor Plating | -6/Factory | Scanalyzed Robot Schematics ------------------ L-31 Rogue | -7/Factory | Hacked A-02 Transporter | -7/Factory | Hacked Y-54 Guardian | -6/Factory | Hacked Fabricated ------------ Lrn. Proton Cannon | x1 | -7/Factory | Preloaded L-31 Rogue | x3 | -4/Factory G-67 Veteran | x3 | -3/Research | Preloaded Alien Tech Used ----------------- None Achievements -------------- True Hacker Challenges ------------ None Game ------ Seed AdvancedRocketScanner Manual? 0 Play Time 01:58:49 Cumulative 61.2 hours Start 2023.11.12 @ 02:36:04 End 2023.11.12 @ 22:23:38 Sessions 3 Manual Loads 0 Difficulty Adventurer Special Mode None Game No. 47 Rogue 13 Adventurer 34 Explorer 0 Win Type - Total 0 Types 0/0/0/0/0/0/0/0/0 Lore% 31 Gallery% 40 Achievement% 32 Wizard Run 0 Options --------- ASCII 0 Keyboard 0 Movement Mouse Keybinds 0 Fullscreen 1 Font 18/SmallcapsGlow Map View 76x50 Tactical HUD 1 Map Filters NONE Filters NONE Steam 1 RUN: f7892565-0c72-44db-8714-a75dda34202c